bitfinex-derivatives/quotes_BTCF0:USTF0_20251219
["timestamp","ask_amount","ask_price","bid_price","bid_amount"]
[1766163179857,0.00016997,88232.0,88215.0,0.0113421]
[1766163180057,0.00016997,88232.0,88218.0,0.0113417]
[1766163180956,0.00016997,88232.0,88215.0,0.0113421]
[1766163181569,0.00016997,88232.0,88214.0,0.00016997]
[1766163181570,0.0113401,88231.0,88214.0,0.00016997]
[1766163181763,0.0113417,88219.0,88198.0,0.0113442]
[1766163181966,0.00013084,88218.0,88201.0,0.0613439]
[1766163182268,0.01147264,88218.0,88201.0,0.05]
[1766163182768,0.00013084,88218.0,88201.0,0.05016997]
[1766163183368,0.011342,88217.0,88201.0,0.05016997]
[1766163183669,0.0113425,88213.0,88201.0,0.05016997]
[1766163183863,0.0113424,88214.0,88191.0,0.0170652]
[1766163184261,0.00013084,88218.0,88199.0,0.0113441]
[1766163184469,4e-08,88218.0,88191.0,0.00572]
[1766163184659,4e-08,88218.0,88214.0,0.0113422]
[1766163184858,0.011338,88248.0,88224.0,0.011341]
[1766163185068,0.00017007,88245.0,88227.0,0.0113406]
[1766163185263,0.02740104,88244.0,88223.0,0.011341]
[1766163185469,0.0113385,88243.0,88221.0,0.0113413]
[1766163185668,0.0113389,88241.0,88221.0,0.0113413]
[1766163185865,0.00017007,88245.0,88210.0,0.00572]
[1766163185866,0.0274869,88240.0,88210.0,0.00572]
[1766163186063,0.02740104,88239.0,88198.0,1.4462]
[1766163186261,0.00017007,88227.0,88199.0,0.00572]
[1766163186464,0.00572,88226.0,88200.0,0.00572]
[1766163187063,0.00017007,88227.0,88200.0,0.00572]
[1766163187268,0.00192,88226.0,88200.0,0.00572]
[1766163187771,0.00192,88226.0,88212.0,0.0113425]
[1766163187960,0.00192,88226.0,88200.0,0.00572]
[1766163188159,0.00192,88226.0,88210.0,0.0113428]
[1766163188560,0.0132608,88226.0,88210.0,0.0113428]
[1766163189062,0.00192,88226.0,88204.0,0.0113435]
[1766163189262,0.0113409,88225.0,88207.0,0.0113431]
[1766163189464,0.0113411,88223.0,88204.0,0.0113435]
[1766163189665,0.011342,88217.0,88190.0,1.4462]
[1766163189865,0.00010626,88224.0,88191.0,0.00572]
[1766163189866,0.0113423,88214.0,88191.0,0.00572]
[1766163190060,0.00332,88216.0,88191.0,0.00572]
[1766163190061,0.0113427,88211.0,88191.0,0.00572]
[1766163190266,0.011343,88209.0,88191.0,0.00572]
[1766163190468,0.01128242,88209.0,88192.0,0.011345]
[1766163190657,0.00017007,88209.0,88192.0,0.011345]
[1766163190858,0.00017007,88209.0,88191.0,0.00572]
[1766163190859,0.00017007,88209.0,88183.0,0.00572]
[1766163191063,0.0113432,88207.0,88186.0,0.0113458]
[1766163191369,0.00372,88206.0,88183.0,0.00572]
[1766163191563,0.00372,88206.0,88193.0,0.0113449]
[1766163191868,0.00372,88206.0,88183.0,0.00572]
[1766163192071,0.0113408,88226.0,88205.0,0.0113433]
[1766163192278,0.0113408,88226.0,88187.0,0.0113457]
[1766163192279,0.00176,88223.0,88207.0,0.0113431]
[1766163192661,0.0113414,88221.0,88201.0,0.0113438]
[1766163192865,0.0113417,88219.0,88201.0,0.0113438]
[1766163193073,0.0113417,88219.0,88209.0,0.0113428]
[1766163193074,0.00017007,88219.0,88209.0,0.0113428]
[1766163193268,0.0113371,88254.0,88201.0,0.00017007]
[1766163193269,0.0113396,88235.0,88216.0,0.0113419]
[1766163193474,0.00088,88240.0,88224.0,0.011341]
[1766163193770,0.00088,88240.0,88226.0,0.0113406]
[1766163194167,0.0113381,88247.0,88213.0,0.003]
[1766163194168,0.00017007,88242.0,88229.0,0.0113403]
[1766163194369,0.00017007,88242.0,88232.0,0.0113399]
[1766163194568,0.00017007,88242.0,88228.0,0.0113404]
[1766163194872,0.00017007,88242.0,88224.0,0.01151097]
[1766163195065,0.00017007,88242.0,88225.0,0.00572]
[1766163195267,0.00017007,88242.0,88226.0,0.0113406]
[1766163195876,0.00017007,88242.0,88225.0,0.0170607]
[1766163196071,0.00017007,88242.0,88225.0,0.00572]
[1766163196286,0.01150877,88242.0,88224.0,0.00017007]
[1766163197780,0.0113391,88239.0,88224.0,0.00017007]
[1766163197973,0.00017007,88242.0,88224.0,0.00017007]
[1766163198178,0.0113388,88241.0,88224.0,0.00017007]
[1766163198673,0.00017007,88242.0,88224.0,0.00017007]
[1766163199177,0.00036,88250.0,88232.0,0.0113399]
[1766163199371,0.09091226,88261.0,88238.0,0.0113392]
[1766163199567,0.02744755,88260.0,88243.0,0.0113385]
[1766163199774,0.00572,88261.0,88247.0,0.011338]
[1766163200674,0.00572,88261.0,88245.0,0.00016997]
[1766163200880,0.00572,88261.0,88246.0,0.0113381]
[1766163201375,0.00572,88261.0,88245.0,0.00016997]
[1766163201376,0.00016997,88263.0,88247.0,0.011338]
[1766163201585,0.0113365,88259.0,88245.0,0.00016997]
[1766163202179,0.01150607,88263.0,88245.0,0.00016997]
[1766163202378,0.02748303,88262.0,88245.0,0.00016997]
[1766163202683,0.02748303,88261.0,88245.0,0.00016997]
[1766163202878,0.02748303,88260.0,88245.0,0.00016997]
[1766163203067,0.02748303,88259.0,88245.0,0.00016997]
[1766163203380,0.02748303,88258.0,88245.0,0.00016997]
[1766163203575,0.02748303,88257.0,88245.0,0.00016997]
[1766163203783,0.02748303,88256.0,88245.0,0.00016997]
[1766163203975,0.02748303,88255.0,88245.0,0.00016997]
[1766163204176,0.02748303,88254.0,88245.0,0.01150817]
[1766163204372,0.02748303,88253.0,88245.0,0.00016997]
[1766163204573,0.01748303,88252.0,88245.0,7e-08]
[1766163204772,0.011338,88248.0,88237.0,0.00368]
[1766163204972,0.0113375,88252.0,88237.0,0.00368]
[1766163205380,0.0113377,88250.0,88237.0,0.00368]
[1766163207083,0.0113371,88255.0,88222.0,0.00572]
[1766163207283,0.0113393,88237.0,88219.0,0.00572]
[1766163207475,0.0113389,88240.0,88220.0,0.0113414]
[1766163207678,0.00572,88241.0,88220.0,0.0113414]
[1766163207878,0.00572,88241.0,88223.0,0.0113411]
[1766163208078,0.00588997,88241.0,88223.0,0.01151107]
[1766163208686,0.00588997,88241.0,88225.0,0.0113408]
[1766163209177,0.00588997,88241.0,88223.0,0.00016997]
[1766163209377,0.00588997,88241.0,88226.0,0.0113406]
[1766163209577,0.01722887,88241.0,88226.0,0.0113406]
[1766163209785,0.00588997,88241.0,88228.0,0.0113404]
[1766163210483,0.00588997,88241.0,88230.0,0.0113401]
[1766163210784,0.00588997,88241.0,88232.0,0.0113398]
[1766163210977,0.00016997,88241.0,88234.0,0.0113396]
[1766163211181,0.00572,88250.0,88229.0,0.00572]
[1766163211476,0.00572,88264.0,88248.0,0.0113378]
[1766163211682,0.00572,88264.0,88244.0,0.00572]
[1766163211878,0.0113362,88261.0,88246.0,0.011338]
[1766163212081,0.0113362,88261.0,88245.0,0.01710817]
[1766163213383,0.00016997,88262.0,88245.0,0.00576997]
[1766163213579,0.0113366,88258.0,88245.0,0.00576997]
[1766163213779,0.0113362,88261.0,88246.0,0.0113381]
[1766163213974,0.0113373,88253.0,88246.0,0.00572]
[1766163214188,0.0113373,88253.0,88242.0,0.00572]
[1766163214580,0.28117481,88260.0,88226.0,0.0113406]
[1766163214782,0.0113379,88249.0,88230.0,0.0113401]
[1766163214974,0.0113379,88249.0,88231.0,0.00368]
[1766163215178,0.01150787,88249.0,88231.0,0.00384997]
[1766163216091,0.01150787,88249.0,88232.0,0.0113399]
[1766163216883,0.00016997,88249.0,88232.0,0.0113399]
[1766163217083,0.011338,88248.0,88231.0,0.00384997]
[1766163217392,0.0113379,88248.0,88231.0,0.00334997]
[1766163217987,0.0113379,88248.0,88231.0,0.01468997]
[1766163218379,0.0113382,88246.0,88231.0,0.00334997]
[1766163219002,0.01150777,88249.0,88231.0,0.00334997]
[1766163219702,0.00016997,88249.0,88231.0,0.01468997]
[1766163219902,0.00016997,88249.0,88231.0,0.00334997]
[1766163220499,0.0113382,88246.0,88231.0,0.00334997]
[1766163220706,0.01150777,88249.0,88231.0,0.00334997]
[1766163221199,0.01150777,88249.0,88232.0,0.0113399]
[1766163221403,0.02753423,88248.0,88232.0,0.0113399]
[1766163221597,0.01150777,88249.0,88231.0,0.00334997]
[1766163221598,0.0113381,88246.0,88231.0,0.00334997]
[1766163221906,0.01150777,88249.0,88231.0,0.00334997]
[1766163222101,0.02751847,88248.0,88231.0,0.00334997]
[1766163222301,0.02753343,88247.0,88231.0,0.00334997]
[1766163222509,0.01150777,88249.0,88231.0,0.01468997]
[1766163222796,0.02753269,88248.0,88231.0,0.01468997]
[1766163223001,0.02753269,88247.0,88231.0,0.01468997]
[1766163223204,0.00016997,88249.0,88231.0,0.01468997]
[1766163223402,0.02753762,88248.0,88234.0,0.0113396]
[1766163223602,0.02753762,88247.0,88234.0,0.0113396]
[1766163223794,0.02753762,88246.0,88234.0,0.0113396]
[1766163223992,0.00016997,88249.0,88234.0,0.0113396]
[1766163224201,0.02755325,88248.0,88231.0,0.00334997]
[1766163224408,0.03889125,88247.0,88231.0,0.00334997]
[1766163224708,0.02755325,88246.0,88231.0,0.00334997]
[1766163225008,0.02755325,88246.0,88234.0,0.0113396]
[1766163225303,0.00016997,88249.0,88231.0,0.00334997]
[1766163225509,0.00572,88253.0,88239.0,0.011339]
[1766163225812,0.011337,88255.0,88239.0,0.011339]
[1766163226010,0.0113369,88256.0,88241.0,0.0113387]
[1766163226209,0.0113364,88260.0,88243.0,0.0113384]
[1766163226411,0.00016997,88260.0,88251.0,0.0113374]
[1766163226602,0.00016997,88260.0,88250.0,0.00572]
[1766163226603,7e-08,88260.0,88250.0,0.00572]
[1766163226909,7e-08,88260.0,88224.0,1.44612]
[1766163227210,7e-08,88260.0,88240.0,0.28117481]
[1766163227509,7e-08,88260.0,88241.0,0.00572]
[1766163227713,7e-08,88260.0,88242.0,0.00572]
[1766163227910,7e-08,88260.0,88242.0,0.00588997]
[1766163229013,7e-08,88260.0,88247.0,0.0113379]
[1766163230406,7e-08,88260.0,88249.0,0.0113376]
[1766163230609,7e-08,88260.0,88242.0,0.00588997]
[1766163230610,7e-08,88260.0,88254.0,0.011337]
[1766163230809,7e-08,88260.0,88256.0,0.0113369]
[1766163231111,7e-08,88260.0,88258.0,0.0113366]
[1766163231314,0.08110802,88292.0,88257.0,0.00572]
[1766163231512,0.0113347,88274.0,88257.0,0.00572]
[1766163231703,0.0113347,88274.0,88232.0,0.0113398]
[1766163231704,0.28117481,88267.0,88215.0,1.44604]
[1766163231904,0.0113371,88255.0,88233.0,0.0113397]
[1766163232212,0.0113374,88252.0,88234.0,0.00572]
[1766163232414,0.0113374,88252.0,88235.0,0.00016997]
[1766163234015,0.00016997,88253.0,88235.0,0.00016997]
[1766163234212,0.0113379,88249.0,88235.0,0.00016997]
[1766163234916,0.0113374,88252.0,88235.0,0.00016997]
[1766163235119,0.01150727,88253.0,88235.0,0.01150947]
[1766163235519,0.00016997,88253.0,88235.0,0.00016997]
[1766163235820,1.44604,88276.0,88235.0,0.00016997]
[1766163236117,1.44604,88276.0,88215.0,0.7391331]
[1766163236118,0.28117481,88245.0,88215.0,0.7391331]
[1766163236414,0.0113416,88219.0,88196.0,0.0113446]
[1766163236613,0.0113416,88219.0,88191.0,0.00572]
[1766163236614,0.00572,88218.0,88191.0,0.0170652]
[1766163236923,0.0170618,88218.0,88197.0,0.0113444]
[1766163237112,0.00016997,88216.0,88199.0,0.01151407]
[1766163237516,0.00016997,88216.0,88201.0,0.0113438]
[1766163237717,0.00016997,88216.0,88199.0,0.00016997]
[1766163239224,0.00016997,88216.0,88200.0,0.011344]
[1766163239917,0.00016997,88216.0,88199.0,0.00016997]
[1766163240315,0.00016997,88216.0,88203.0,0.0113437]
[1766163240519,0.0113406,88228.0,88207.0,0.0113431]
[1766163240716,0.02690679,88227.0,88208.0,0.00572]
[1766163241017,0.02690679,88226.0,88212.0,0.0113425]
[1766163241321,0.00368,88229.0,88212.0,0.0113425]
[1766163241525,0.02690009,88228.0,88212.0,0.01151247]
[1766163241824,0.02690009,88228.0,88215.0,0.0113421]
[1766163242025,0.02690009,88228.0,88213.0,0.0113424]
[1766163242326,0.01519027,88229.0,88212.0,0.00016997]
[1766163242514,0.02689205,88228.0,88212.0,0.00016997]
[1766163242714,0.0113409,88225.0,88205.0,0.0140633]
[1766163243515,0.0113412,88223.0,88205.0,0.00272]
[1766163243827,0.0113412,88223.0,88205.0,0.00288997]
[1766163244020,0.00384997,88229.0,88205.0,0.00288997]
[1766163244021,0.0113407,88227.0,88206.0,0.0113433]
[1766163244318,0.011341,88224.0,88206.0,0.0113433]
[1766163244519,0.011341,88224.0,88205.0,0.00288997]
[1766163244926,0.00384997,88229.0,88205.0,0.00288997]
[1766163245124,0.011341,88224.0,88206.0,0.0113432]
[1766163245326,0.0113406,88227.0,88206.0,0.0113432]
[1766163245627,0.011341,88225.0,88205.0,0.00288997]
[1766163245926,0.0113412,88222.0,88205.0,0.00288997]
[1766163246126,0.0113412,88222.0,88205.0,0.00016997]
[1766163246325,0.0113409,88225.0,88205.0,0.00016997]
[1766163246623,0.00492,88224.0,88209.0,0.0113428]
[1766163246827,0.00492,88224.0,88205.0,0.00016997]
[1766163246828,0.00492,88224.0,88206.0,0.0113433]
[1766163247027,0.0113415,88221.0,88196.0,0.00572]
[1766163247221,0.0113415,88221.0,88204.0,0.0113435]
[1766163247626,0.016261,88224.0,88207.0,0.0113432]
[1766163248127,0.00492,88224.0,88207.0,0.01151317]
[1766163248621,0.0113412,88223.0,88207.0,0.00016997]
[1766163249429,0.00492,88224.0,88207.0,0.01151297]
[1766163250029,0.0162611,88224.0,88207.0,0.01151297]
[1766163250532,0.0162611,88224.0,88207.0,0.00016997]
[1766163250723,0.0113429,88209.0,88180.0,0.28117481]
[1766163250923,0.0113432,88207.0,88185.0,0.00572]
[1766163251122,0.00368,88206.0,88188.0,0.0113455]
[1766163251317,0.00368,88206.0,88190.0,0.0113453]
[1766163252327,0.0113435,88205.0,88186.0,0.0113458]
[1766163252526,0.00368,88206.0,88190.0,0.0113453]
[1766163252930,0.00368,88206.0,88194.0,0.0113448]
[1766163253230,0.0150233,88206.0,88187.0,0.0113457]
[1766163253426,0.00368,88206.0,88170.0,0.28117481]
[1766163253634,0.0113443,88199.0,88181.0,0.0113464]
[1766163253819,0.0113439,88202.0,88181.0,0.0113464]
[1766163254025,0.0150234,88206.0,88187.0,0.0113456]
[1766163254222,0.0268227,88205.0,88186.0,0.0113458]
[1766163254426,0.0150234,88206.0,88188.0,0.0113455]
[1766163254726,0.0113436,88204.0,88188.0,0.0113455]
[1766163255128,0.0113439,88202.0,88185.0,0.011346]
[1766163255329,0.00368,88206.0,88179.0,0.00572]
[1766163255639,0.00017007,88207.0,88180.0,0.29252131]
[1766163255931,0.0113411,88224.0,88190.0,0.28117481]
[1766163256137,0.04183715,88223.0,88204.0,0.0113435]
[1766163256442,0.0113414,88221.0,88204.0,0.0113435]
[1766163256631,0.02681595,88220.0,88203.0,0.0113436]
[1766163257023,0.02698602,88220.0,88203.0,0.01151367]
[1766163257228,0.02681595,88219.0,88203.0,0.01151367]
[1766163257430,0.02681595,88219.0,88186.0,0.0113458]
[1766163257431,0.0113419,88217.0,88194.0,0.0113448]
[1766163257633,0.0113429,88210.0,88180.0,1.4579465]
[1766163257835,0.0113434,88206.0,88190.0,0.0113453]
[1766163258137,0.00368,88205.0,88190.0,0.0113453]
[1766163258334,0.00572,88204.0,88183.0,0.00368]
[1766163258541,0.0113439,88202.0,88178.0,0.00572]
[1766163258843,0.0113443,88199.0,88181.0,0.0113465]
[1766163259140,0.28158163,88200.0,88169.0,0.0113479]
[1766163259438,0.00017007,88202.0,88179.0,0.0113467]
[1766163259439,0.0381982,88199.0,88179.0,0.0113467]
[1766163259741,0.0113446,88197.0,88179.0,0.0113467]
[1766163259946,0.026854,88196.0,88179.0,0.0113467]
[1766163260240,0.026854,88196.0,88181.0,0.0113464]
[1766163260241,0.00581347,88195.0,88181.0,0.0113464]
[1766163260432,0.026854,88194.0,88181.0,0.0113464]
[1766163261041,0.0381989,88194.0,88164.0,0.0113487]
[1766163261239,0.0113453,88191.0,88165.0,0.00368]
[1766163261434,0.00581347,88195.0,88165.0,0.00368]
[1766163261435,0.02687472,88190.0,88169.0,0.0113479]
[1766163261652,0.02687472,88189.0,88174.0,0.0113473]
[1766163261839,0.011345,88193.0,88173.0,0.0113475]
[1766163262142,0.02687434,88192.0,88173.0,0.0113475]
[1766163262342,0.01735928,88195.0,88145.0,0.0115296]
[1766163262534,0.00017007,88179.0,88151.0,0.0113504]
[1766163262729,7e-08,88179.0,88166.0,0.0113483]
[1766163262933,7e-08,88179.0,88178.0,0.0113469]
[1766163263441,7e-08,88179.0,88163.0,0.00572]
[1766163263442,7e-08,88179.0,88175.0,0.0113472]
[1766163263939,7e-08,88179.0,88169.0,0.011348]
[1766163264145,7e-08,88179.0,88171.0,0.0113477]
[1766163264348,7e-08,88179.0,88173.0,0.0113474]
[1766163265941,1.5,88194.0,88168.0,0.01151817]
[1766163266145,0.03266622,88193.0,88168.0,0.01151817]
[1766163266336,0.02694622,88192.0,88168.0,0.00017007]
[1766163266642,0.02694622,88191.0,88178.0,0.0113468]
[1766163266831,0.02694622,88190.0,88178.0,0.0113468]
[1766163267032,0.02694622,88189.0,88178.0,0.0113468]
[1766163267238,0.02694622,88188.0,88180.0,0.0113465]
[1766163267443,0.02694622,88187.0,88180.0,0.0113465]
[1766163267740,3.56e-06,88195.0,88192.0,0.0113451]
[1766163267939,3.56e-06,88195.0,88168.0,0.00017007]
[1766163267940,0.0606057,88214.0,88199.0,0.0113441]
[1766163268144,0.00572,88213.0,88198.0,0.0113443]
[1766163268442,0.00572,88213.0,88181.0,0.00572]
[1766163268646,0.0113427,88211.0,88181.0,0.00572]
[1766163268939,0.011343,88209.0,88191.0,0.0113451]
[1766163269138,0.00017007,88205.0,88187.0,0.00017007]
[1766163269444,0.00572,88204.0,88187.0,0.00017007]
[1766163269746,0.00572,88204.0,88191.0,0.0113452]
[1766163270346,0.00572,88204.0,88193.0,0.0113448]
[1766163270938,0.00572,88230.0,88194.0,0.28730163]
[1766163271243,0.0113421,88216.0,88197.0,0.0113443]
[1766163271438,0.0012,88215.0,88192.0,0.00384]
[1766163271636,0.0113432,88207.0,88178.0,0.0113468]
[1766163271836,0.0113444,88198.0,88184.0,0.00017007]
[1766163272447,0.01723407,88201.0,88184.0,0.00017007]
[1766163272646,0.0113443,88199.0,88184.0,0.00017007]
[1766163272837,0.00589007,88201.0,88184.0,0.00017007]
[1766163273038,0.0113445,88197.0,88184.0,0.00017007]
[1766163273435,0.0113445,88197.0,88184.0,7e-08]
[1766163273840,0.28158163,88200.0,88184.0,7e-08]
[1766163274036,0.28158163,88200.0,88162.0,0.0113489]
[1766163274037,0.0113465,88182.0,88162.0,0.0113489]
[1766163274239,0.00572,88185.0,88167.0,0.0113482]
[1766163274434,0.00572,88185.0,88163.0,0.00548]
[1766163274646,0.0113468,88180.0,88159.0,0.0113492]
[1766163274839,0.0113468,88180.0,88130.0,1.72846163]
[1766163274840,0.29292833,88180.0,88130.0,1.72846163]
[1766163275057,0.0113484,88166.0,88130.0,1.72846163]
[1766163275345,0.00572,88165.0,88130.0,1.72846163]
[1766163275553,0.00572,88165.0,88146.0,0.0113509]
[1766163275849,0.00572,88165.0,88141.0,0.003]
[1766163276054,0.0113488,88164.0,88145.0,0.00017007]
[1766163276547,0.00572,88165.0,88145.0,0.00017007]
[1766163276752,0.00572,88165.0,88145.0,0.01152107]
[1766163276950,0.0113487,88164.0,88145.0,0.00017007]
[1766163277149,0.00572,88165.0,88145.0,0.00017007]
[1766163277452,0.00572,88165.0,88145.0,0.01152117]
[1766163277649,0.00572,88165.0,88145.0,0.00017007]
[1766163277855,0.00572,88165.0,88147.0,0.0113509]
[1766163278240,0.00572,88165.0,88149.0,0.0113505]
[1766163278445,0.00572,88165.0,88148.0,0.0113506]
[1766163278757,0.0046,88167.0,88148.0,0.0113506]
[1766163279059,0.0113485,88166.0,88145.0,0.00017007]
[1766163279260,0.0113485,88166.0,88145.0,0.01152117]
[1766163279556,0.0113485,88166.0,88145.0,0.01284117]
[1766163279742,0.0266941,88165.0,88145.0,0.01284117]
[1766163279945,0.0266941,88164.0,88145.0,0.01284117]
[1766163280250,0.0266941,88163.0,88145.0,0.01284117]
[1766163280449,0.0266941,88162.0,88145.0,0.01284117]
[1766163280649,0.0266941,88161.0,88145.0,0.01284117]
[1766163280850,0.02669369,88160.0,88145.0,0.00149007]
[1766163281154,0.0046,88167.0,88145.0,0.00149007]
[1766163281450,0.02668888,88166.0,88153.0,0.01135]
[1766163281657,0.02668888,88165.0,88150.0,0.0113505]
[1766163281856,0.02668888,88164.0,88150.0,0.0113505]
[1766163282046,0.02668888,88163.0,88150.0,0.0113505]
[1766163282244,0.02668888,88162.0,88150.0,0.0113505]
[1766163282444,0.02668888,88161.0,88146.0,0.0113509]
[1766163282646,0.0046,88167.0,88146.0,0.0113509]
[1766163282849,0.02668528,88166.0,88149.0,0.0113506]
[1766163283045,0.02668528,88165.0,88149.0,0.0113506]
[1766163283248,0.02668528,88164.0,88149.0,0.0113506]
[1766163283448,0.02668528,88163.0,88145.0,0.01152117]
[1766163283649,0.02668528,88162.0,88147.0,0.0113508]
[1766163283850,0.02668528,88161.0,88147.0,0.0113508]
[1766163284051,0.0046,88167.0,88147.0,0.0113508]
[1766163284052,0.02668528,88160.0,88147.0,0.0113508]
[1766163284249,0.0046,88167.0,88145.0,0.00017007]
[1766163284448,0.41338645,88160.0,88120.0,1.44724]
[1766163284648,0.0113504,88151.0,88128.0,0.0113532]
[1766163284852,0.03240023,88150.0,88128.0,0.0113532]
[1766163285057,0.02668023,88149.0,88128.0,0.0113532]
[1766163285363,0.00017018,88147.0,88128.0,0.0113533]
[1766163285658,0.00017018,88147.0,88093.0,8.768e-05]
[1766163285659,0.02666676,88146.0,88093.0,8.768e-05]
[1766163285860,0.00013678,88148.0,88102.0,0.0113566]
[1766163285861,8e-08,88128.0,88102.0,0.0113566]
[1766163286163,8e-08,88128.0,88125.0,0.0113536]
[1766163286455,0.00013678,88148.0,88143.0,0.0113514]
[1766163286654,5e-08,88147.0,88140.0,0.0113518]
[1766163286862,0.00013678,88148.0,88140.0,0.0113518]
[1766163287752,0.00013678,88148.0,88136.0,0.0113522]
[1766163288055,8e-08,88148.0,88145.0,0.0113511]
[1766163288756,8e-08,88148.0,88142.0,0.0113515]
[1766163288958,8e-08,88148.0,88138.0,0.0113519]
[1766163289157,8e-08,88148.0,88135.0,0.00017018]
[1766163289362,8e-08,88148.0,88130.0,0.01056961]
[1766163290163,0.0113509,88147.0,88125.0,0.0167936]
[1766163290561,0.0113509,88147.0,88111.0,0.00544]
[1766163290873,0.0113509,88147.0,88122.0,0.010854]
[1766163291357,8e-08,88148.0,88126.0,0.0113535]
[1766163291758,8e-08,88148.0,88123.0,0.0113539]
[1766163292264,8e-08,88148.0,88127.0,0.0113534]
[1766163293165,8e-08,88148.0,88134.0,0.0113525]
[1766163293550,0.00572008,88148.0,88138.0,0.011352]
[1766163294064,0.00572008,88148.0,88134.0,0.0113525]
[1766163294265,0.00572008,88148.0,88137.0,0.0113521]
[1766163294967,0.00572008,88148.0,88140.0,0.0113517]
[1766163295159,8e-08,88148.0,88127.0,0.00368]
[1766163295366,0.0719534,88172.0,88127.0,0.00368]
[1766163295562,0.00572,88171.0,88132.0,0.0113527]
[1766163295766,0.00572,88171.0,88130.0,0.41338645]
[1766163295967,0.00572,88171.0,88127.0,0.00368]
[1766163295968,0.00572,88171.0,88152.0,0.0113501]
[1766163296266,0.00572,88171.0,88131.0,0.0113529]
[1766163296267,0.00522,88171.0,88148.0,0.0113506]
[1766163296466,0.00017018,88168.0,88151.0,0.00017018]
[1766163297373,0.0113483,88167.0,88151.0,0.00017018]
[1766163298162,0.00017018,88168.0,88151.0,0.00017018]
[1766163298667,0.02670589,88167.0,88151.0,0.00017018]
[1766163298968,0.02670589,88166.0,88151.0,0.00017018]
[1766163299165,0.02670589,88165.0,88151.0,0.00017018]
[1766163299372,0.02670589,88164.0,88151.0,0.00017018]
[1766163299570,0.02670589,88163.0,88146.0,0.011351]
[1766163299767,0.03242589,88162.0,88127.0,1.44764]
[1766163299966,0.02670589,88161.0,88130.0,0.0113529]
[1766163300570,0.02670589,88161.0,88128.0,0.00572]
[1766163300571,0.0113506,88150.0,88128.0,0.00572]
[1766163300772,0.03242589,88149.0,88128.0,0.00572]
[1766163300971,0.0113509,88147.0,88128.0,0.00572]
[1766163301267,0.02673682,88146.0,88128.0,0.00572]
[1766163301468,0.00017018,88154.0,88128.0,0.00572]
[1766163301765,6e-08,88154.0,88148.0,0.0113507]
[1766163301962,6e-08,88154.0,88144.0,0.0113511]
[1766163302363,6e-08,88154.0,88140.0,0.00184]
[1766163302870,6e-08,88154.0,88144.0,0.0113512]
[1766163303068,6e-08,88154.0,88140.0,0.00184]
[1766163303564,6e-08,88154.0,88148.0,0.0113506]
[1766163303759,6e-08,88154.0,88140.0,0.00184]
[1766163303967,6e-08,88154.0,88138.0,0.00017018]
[1766163304469,6e-08,88154.0,88143.0,0.0113513]
[1766163304673,6e-08,88154.0,88139.0,0.00572]
[1766163304674,6e-08,88154.0,88147.0,0.0113509]
[1766163305372,6e-08,88154.0,88139.0,0.00572]
[1766163305576,6e-08,88154.0,88144.0,0.0113512]
[1766163305777,6e-08,88154.0,88139.0,0.0113519]
[1766163306070,0.0113506,88150.0,88138.0,0.00017018]
[1766163306272,0.0113514,88143.0,88116.0,1.44764]
[1766163306476,0.0056,88151.0,88117.0,1.45336]
[1766163306771,0.06162936,88171.0,88125.0,0.0113536]
[1766163306772,0.0113512,88145.0,88125.0,0.0113536]
[1766163306976,0.011351,88146.0,88126.0,0.00572]
[1766163307273,0.00017018,88145.0,88126.0,0.00572]
[1766163307572,0.00017018,88145.0,88127.0,0.0113534]
[1766163307972,0.01152138,88145.0,88126.0,0.00572]
[1766163308175,0.00017018,88145.0,88127.0,0.0113534]
[1766163308378,0.00017018,88145.0,88126.0,0.00572]
[1766163308577,0.00017018,88145.0,88130.0,0.011353]
[1766163308768,0.00017018,88145.0,88127.0,0.0113534]
[1766163309675,0.0113514,88144.0,88126.0,0.00572]
[1766163310376,0.0113513,88144.0,88125.0,0.0113536]
[1766163310678,0.0113516,88142.0,88126.0,0.00572]
[1766163310880,0.00017018,88145.0,88126.0,0.00572]
[1766163311075,0.0113514,88144.0,88126.0,0.00572]
[1766163311579,0.00017018,88145.0,88126.0,0.00572]
[1766163311877,1.8e-07,88145.0,88126.0,0.00572]
[1766163312179,1.8e-07,88145.0,88132.0,0.0113528]
[1766163312478,1.8e-07,88145.0,88126.0,0.0170736]
[1766163312870,1.8e-07,88145.0,88127.0,0.00017018]
[1766163313367,0.01135138,88145.0,88127.0,0.00017018]
[1766163313675,0.02667572,88144.0,88127.0,0.00017018]
[1766163313873,0.02667572,88143.0,88127.0,0.00017018]
[1766163314076,0.0113524,88136.0,88127.0,0.00017018]
[1766163314274,0.0113529,88132.0,88127.0,0.00017018]
[1766163314471,0.02667572,88131.0,88127.0,0.00017018]
[1766163314670,0.02667572,88130.0,88127.0,0.00017018]
[1766163314871,0.02667572,88129.0,88127.0,0.00017018]
[1766163315171,0.02667572,88128.0,88127.0,0.00017018]
[1766163315771,0.02667572,88128.0,88127.0,1.8e-07]
[1766163315972,0.02667572,88128.0,88091.0,0.01157579]
[1766163316177,0.0113538,88125.0,88098.0,1.44776]
[1766163316382,0.02666274,88124.0,88106.0,0.0113561]
[1766163316578,0.02666274,88123.0,88107.0,0.00572]
[1766163316876,0.02666274,88122.0,88107.0,0.00572]
[1766163317081,0.00017018,88124.0,88110.0,0.0113556]
[1766163317290,0.02665283,88123.0,88110.0,0.0113556]
[1766163317575,0.00572,88123.0,88094.0,0.0113577]
[1766163317780,0.00572,88123.0,88090.0,0.41338645]
[1766163317781,0.02663625,88122.0,88111.0,0.0113555]
[1766163317979,0.00017018,88124.0,88117.0,0.0113547]
[1766163317980,1.8e-07,88124.0,88117.0,0.0113547]
[1766163318179,1.52851086,88146.0,88100.0,0.41338645]
[1766163318180,0.0606057,88142.0,88131.0,0.0113529]
[1766163318382,0.0606057,88146.0,88135.0,0.0113524]
[1766163318571,0.00572,88149.0,88141.0,0.0113515]
[1766163318779,0.00572,88156.0,88135.0,0.00572]
[1766163318976,0.00572,88156.0,88145.0,0.0113511]
[1766163319685,0.00572,88156.0,88142.0,0.00017018]
[1766163320573,0.0113507,88149.0,88126.0,0.0122735]
[1766163320770,0.00572,88148.0,88129.0,0.0113532]
[1766163320973,0.00572,88148.0,88126.0,0.00092]
[1766163321676,0.00572,88148.0,88094.0,0.0814826]
[1766163321677,0.0113532,88129.0,88107.0,0.0113559]
[1766163321978,0.00017018,88127.0,88108.0,0.0150358]
[1766163322377,0.00017018,88127.0,88110.0,0.0113555]
[1766163322786,0.00017018,88127.0,88114.0,0.011355]
[1766163323381,0.00017018,88127.0,88111.0,0.0113555]
[1766163323781,0.00017018,88127.0,88108.0,0.00368]
[1766163324089,0.00017018,88127.0,88096.0,0.0113574]
[1766163324277,0.00017018,88127.0,88108.0,0.0113559]
[1766163324471,0.00017018,88127.0,88104.0,0.0113563]